[Event "Baku Open 2024"]
[Site "Baku"]
[Date "2024.07.06"]
[Round "8.15"]
[White "Shyam, Sundar M."]
[Black "Israilov, Agil"]
[Result "1-0"]
[ECO "C00"]
[WhiteElo "2493"]
[BlackElo "2141"]
[Annotator "TA"]
[PlyCount "103"]
[EventDate "2024.06.29"]
[EventType "swiss"]
[EventCountry "AZE"]
[SourceTitle "playchess.com"]
[Source "ChessBase"]
[SourceQuality "1"]
[TimeControl "5400+30"]

{[%evp 11,103,7,10,10,16,20,9,24,16,16,28,15,20,21,24,20,56,61,61,23,44,58,64,50,54,33,39,0,63,66,58,51,61,54,50,43,47,46,81,72,93,81,87,71,77,66,80,38,38,38,45,29,31,29,105,105,98,106,105,102,106,54,54,66,91,91,79,74,210,199,227,234,231,235,261,240,278,277,363,363,349,349,327,320,395,285,1021,940,1025,1009,1096,1068,2059,1770]} 1. e4 {[%emt 0:04:09]} c5 {[%emt 0:00:04]} 2. Nf3 {[%emt 0:00:38]} e6 {[%emt 0:00:06]} 3. g3 {[%emt 0:00:20]} d6 {[%emt 0:00:18]} 4. Bg2 {[%emt 0:00:45]} Nf6 {[%emt 0:00:09]} 5. Qe2 {[%emt 0:03:36]} Nc6 {[%emt 0:01:21]} 6. O-O {[%emt 0:00:24]} Be7 {[%emt 0:00:19]} 7. Rd1 {[%emt 0:00:09]} O-O {[%emt 0:01:29]} 8. d4 {[%emt 0:00:29]} cxd4 {[%emt 0:00:26]} 9. Nxd4 {[%emt 0:00:04] The position is equal.} Nxd4 {[%emt 0:01:44]} 10. Rxd4 {[%emt 0:00:03]} e5 {[%emt 0:01:24]} 11. Rd1 {[%emt 0:01:18]} Bg4 {[%emt 0:00:12]} 12. Bf3 {[%emt 0:09:07]} Be6 {[%emt 0:00:39]} 13. c4 {[%emt 0:02:41]} Rc8 {[%emt 0:00:34]} 14. b3 {[%emt 0:00:23]} a6 {[%emt 0:00:12]} 15. Bb2 {[%emt 0:00:31]} Qa5 {[%emt 0:02:42]} 16. Nc3 {[%emt 0:01:17]} g6 {[%emt 0:17:24]} 17. Rac1 {[%emt 0:03:23]} h5 {[%emt 0:02:29]} 18. a4 {[%emt 0:23:40]} Qb4 {[%emt 1:07:58]} 19. Qc2 {[%emt 0:00:16]} Nd7 {[%emt 0:00:00]} (19... h4 $1 $11) 20. Nd5 {[%emt 0:02:34]} Bxd5 {[%emt 0:00:00]} 21. Bc3 {[%emt 0:05:18]} (21. Rxd5 Nc5 $11) 21... Qb6 {[%emt 0:00:00]} (21... Bxe4 22. Bxe4 Qc5 23. Bxb7 $18) 22. Rxd5 {[%emt 0:00:34]} Nc5 {[%emt 0:00:00]} 23. b4 {[%emt 0:02:27]} Ne6 {[%emt 0:00:00]} 24. Be2 {[%emt 0:00:35]} Bf6 {[%emt 0:00:00]} 25. Rcd1 {[%emt 0:03:06]} Nd4 {[%emt 0:00:00]} 26. Bxd4 {[%emt 0:00:09]} exd4 {[%emt 0:00:00]} 27. Qd2 {[%emt 0:01:17]} Rfe8 {[%emt 0:00:00]} 28. a5 {[%emt 0:00:08]} Qc7 {[%emt 0:00:00]} 29. Bd3 {[%emt 0:00:37]} Re5 $1 {[%emt 0:00:00]} 30. Rxe5 {[%emt 0:00:01]} dxe5 {[%emt 0:00:00]} 31. c5 {[%emt 0:00:02]} h4 {[%emt 0:00:00]} 32. Qh6 $36 {[%emt 0:07:40][%mdl 2048] Bc4 would now be deadly. White has good play.} Qd7 {[%emt 0:00:00]} (32... Qc6 $1 $11) 33. Bc4 $16 {[%emt 0:00:28] White is more active.} (33. gxh4 $2 {is the wrong capture.} Qg4+ 34. Kh1 Qxd1+ $19) 33... Qg4 {[%emt 0:00:00][%csl LRd1,LRe4] [#]} 34. f3 $1 {[%emt 0:00:05]} Qg5 {[%emt 0:00:00] Black is weak on the light squares} 35. Qxg5 {[%emt 0:00:02]} Bxg5 {[%emt 0:00:00][%mdl 4096] Endgame. KRB-KRB} 36. Bd5 {[%emt 0:00:41]} ({White should try} 36. f4 $16 Bf6 37. Kf1) 36... Rc7 $14 {[%emt 0:00:00]} 37. Kf2 {[%emt 0:00:22]} Kf8 {[%emt 0:00:00]} 38. Ke2 {[%emt 0:00:28]} Ke7 {[%emt 0:00:00]} 39. Rf1 {[%emt 0:01:23]} Kd8 {[%emt 0:00:00] Loses the game.} (39... Be3 $16) 40. f4 $18 {[%emt 0:00:30]} exf4 {[%emt 0:00:00]} 41. gxf4 {[%emt 0:00:01]} Bh6 {[%emt 0:00:00]} 42. Kd3 {[%emt 0:00:36]} Re7 {[%emt 0:00:00]} 43. Kxd4 {[%emt 0:02:08]} f6 {[%emt 0:00:00]} 44. h3 {[%emt 0:10:18][%cal Bh2h3,Bh3g4][%mdl 32]} g5 {[%emt 0:00:00]} 45. e5 {[%emt 0:06:21]} fxe5+ {[%emt 0:00:00]} 46. fxe5 {[%emt 0:00:02]} g4 {[%emt 0:00:00]} 47. hxg4 {[%emt 0:00:40]} ({Don't take} 47. Rf6 Bg7 48. Re6 (48. hxg4 $2 Bxf6 49. exf6 Rd7 $19) 48... Rxe6 49. Bxe6 g3) 47... Rg7 {[%emt 0:00:00]} 48. Rf8+ {[%emt 0:00:53]} Ke7 $2 {[%emt 0:00:00]} (48... Kc7 49. g5 Bxg5) 49. Rg8 {[%emt 0:00:09] White is clearly winning.} Rxg8 {[%emt 0:00:00]} 50. Bxg8 {[%emt 0:00:04] [#] Strongly threatening Bd5.} Bd2 {[%emt 0:00:00]} 51. Kc4 {[%emt 0:00:22] And now Bd5 would win.} Bf4 {[%emt 0:00:00]} 52. Bd5 {[%emt 0:00:11] Weighted Error Value: White=0.07 (flawless) /Black=0.20 (precise) .  Mistake:       	White=1     	Black=4      Inaccurate:     	White=3     	Black=3      OK:         	White=18    	Black=16     Best:        	White=3     	---        Strong:       	---       	Black=1      Brilliant:      	White=1     	---} 1-0

[Event "Baku Open 2024"]
[Site "Baku"]
[Date "2024.07.06"]
[Round "8.16"]
[White "Kamalidenova, Meruert"]
[Black "Iskandarov, Misratdin"]
[Result "1/2-1/2"]
[ECO "C60"]
[WhiteElo "2360"]
[BlackElo "2524"]
[Annotator "TA"]
[PlyCount "48"]
[EventDate "2024.06.29"]
[EventType "swiss"]
[EventCountry "AZE"]
[SourceTitle "playchess.com"]
[Source "ChessBase"]
[SourceQuality "1"]
[TimeControl "5400+30"]

{[%evp 9,48,24,35,36,23,16,46,42,46,58,45,57,43,46,41,44,38,44,56,50,54,49,44,43,41,56,66,56,61,60,65,58,79,47,38,0,78,0,38,0,81]} 1. e4 {[%emt 0:00:04]} e5 {[%emt 0:00:13]} 2. Nf3 {[%emt 0:00:09]} Nc6 {[%emt 0:00:07]} 3. Bb5 {[%emt 0:00:21][%cal Bf1b5,Bb5a4,Ba4b3,Bb3c4][%mdl 32]} a6 {[%emt 0:00:39]} 4. Ba4 {[%emt 0:00:09]} Nge7 {[%emt 0:00:09]} 5. O-O {[%emt 0:03:03]} Ng6 {[%emt 0:00:11]} 6. d4 {[%emt 0:00:12]} exd4 {[%emt 0:00:26]} 7. Nxd4 {[%emt 0:00:20]} Nxd4 {[%emt 0:00:13]} 8. Qxd4 {[%emt 0:00:05] White is slightly better.} b5 {[%emt 0:00:05]} 9. Bb3 {[%emt 0:00:05]} Bb7 {[%emt 0:00:02] [#] Inhibits Qd5. Threatens to win with ...c5.} 10. Rd1 {[%emt 0:00:26]} Qe7 {[%emt 0:00:25][%cal Oc7c5] White must now prevent ...c5!} 11. c4 {[%emt 0:01:46]} Qd6 {[%emt 0:00:07]} 12. Qxd6 {[%emt 0:05:54]} Bxd6 {[%emt 0:01:18]} 13. Nc3 {[%emt 0:00:55]} bxc4 {[%emt 0:05:48]} 14. Bxc4 {[%emt 0:01:53]} f6 {[%emt 0:00:11]} 15. Be3 {[%emt 0:06:24]} Ne5 {[%emt 0:05:32]} 16. Bd5 {[%emt 0:04:48]} Bxd5 {[%emt 0:14:20]} 17. Nxd5 {[%emt 0:00:36]} ({But not} 17. Rxd5 Ng4 $11) 17... Rb8 {[%emt 0:01:32]} 18. b3 {[%emt 0:02:32]} Kd8 {[%emt 0:06:14]} 19. f3 {[%emt 0:05:08] White is more active.} Re8 {[%emt 0:03:12]} 20. Rac1 {[%emt 0:01:59]} Rb5 {[%emt 0:10:26]} 21. Nc3 {[%emt 0:05:54]} Bc5 {[%emt 0:05:17]} 22. Nd5 {[%emt 0:09:33]} (22. Nxb5 Bxe3+ 23. Kf1 Bxc1 (23... axb5 $2 24. Rb1 $19) 24. Nxc7 Kxc7 $19) 22... Bd6 {[%emt 0:04:09]} 23. Nc3 {[%emt 0:01:54]} Bc5 $1 {[%emt 0:01:26]} 24. Nd5 {[%emt 0:00:43]} (24. Nxb5 Bxe3+ 25. Kf1 Bxc1 (25... axb5 $2 26. Rc2 $19) 26. Nxc7 Kxc7 $19) 24... Bd6 $1 {[%emt 0:00:27] Weighted Error Value: White=0.15 (very precise) /Black=0.03 (flawless) .  Inaccurate:     	White=2     	Black=1      OK:         	White=5     	Black=11     Strong:       	---       	Black=2} 1/2-1/2

[Event "Baku Open 2024"]
[Site "Baku"]
[Date "2024.07.06"]
[Round "8.17"]
[White "Gokerkan, Cem Kaan"]
[Black "Kurmangaliyeva, Liya"]
[Result "1-0"]
[ECO "D02"]
[WhiteElo "2512"]
[BlackElo "2282"]
[Annotator "TA"]
[PlyCount "103"]
[EventDate "2024.06.29"]
[EventType "swiss"]
[EventCountry "AZE"]
[SourceTitle "playchess.com"]
[Source "ChessBase"]
[SourceQuality "1"]
[TimeControl "5400+30"]

{[%evp 12,103,8,5,8,15,3,11,13,6,2,5,6,0,25,13,17,26,48,-4,25,22,43,0,0,-12,12,12,52,6,2,0,0,4,0,0,0,0,0,0,27,20,35,18,34,36,32,13,15,15,29,39,31,25,25,35,37,44,58,5,13,0,129,135,125,141,131,126,135,113,151,140,145,144,1461,1411,1120,521,746,791,1025,669,934,810,1467,1195,5377,4336,5281,5114,2717,1616,1562,1510]} 1. d4 {[%emt 0:08:02]} Nf6 {[%emt 0:05:08]} 2. Nf3 {[%emt 0:00:24]} e6 {[%emt 0:01:16]} 3. Bf4 {[%emt 0:01:45]} d5 {[%emt 0:02:15]} 4. e3 {[%emt 0:00:22]} c5 {[%emt 0:00:59]} 5. Nbd2 {[%emt 0:01:05]} Nc6 {[%emt 0:00:36]} 6. c3 {[%emt 0:00:12]} Be7 {[%emt 0:00:20]} 7. h3 {[%emt 0:01:31]} Bd6 {[%emt 0:04:43]} 8. Bxd6 {[%emt 0:14:07]} Qxd6 {[%emt 0:00:09]} 9. dxc5 {[%emt 0:01:19]} Qxc5 {[%emt 0:01:15] The position is equal.} 10. Bd3 {[%emt 0:00:04]} O-O {[%emt 0:13:37]} 11. O-O {[%emt 0:01:16]} e5 {[%emt 0:10:43] Hoping for ...e4.} 12. e4 {[%emt 0:03:36]} h6 {[%emt 0:00:27]} 13. Re1 {[%emt 0:05:36]} Be6 {[%emt 0:18:26]} 14. exd5 {[%emt 0:18:58]} Qxd5 {[%emt 0:04:45]} 15. Ne4 {[%emt 0:10:27]} (15. Bc4 $14 Qd6 16. Bb5) 15... Nh5 {[%emt 0:05:03]} 16. b4 {[%emt 0:07:02]} Nf4 {[%emt 0:11:47]} 17. Bc2 {[%emt 0:00:57]} Rad8 {[%emt 0:04:38]} 18. Qb1 {[%emt 0:06:28]} Bc8 {[%emt 0:07:49]} 19. Bb3 {[%emt 0:01:00]} Qd3 {[%emt 0:01:04] [#]} 20. b5 $1 {[%emt 0:01:27]} Na5 {[%emt 0:01:16]} (20... Qxb1 {simplifies} 21. Raxb1 Na5 22. Nxe5 Nxb3 23. axb3 Rd5) 21. Nxe5 {[%emt 0:01:04][%cal Bf3e5,Be5c4,Bc4d6][%mdl 32]} (21. Bc2 {is interesting.} Qd7 22. Nxe5 Qc7 23. Nd3) 21... Qxb1 {[%emt 0:00:37]} 22. Raxb1 {[%emt 0:00:04]} Nxb3 {[%emt 0:00:14]} 23. axb3 {[%emt 0:00:34]} Rd5 {[%emt 0:00:55][%csl LRb5,LRe5]} 24. Nc4 {[%emt 0:04:31]} Rxb5 {[%emt 0:00:03]} 25. Ncd6 {[%emt 0:01:26]} Rd5 {[%emt 0:01:33][%cal Oc8h3]} 26. c4 {[%emt 0:00:25]} Rd3 {[%emt 0:00:33][%cal Oc8h3]} 27. Red1 {[%emt 0:01:39]} Rd8 {[%emt 0:01:19]} 28. Rxd3 {[%emt 0:01:15]} Nxd3 {[%emt 0:00:03]} 29. Rd1 {[%emt 0:00:02]} Nb4 {[%emt 0:00:36]} 30. Rd2 {[%emt 0:00:32]} f5 {[%emt 0:02:03]} 31. Nb5 {[%emt 0:05:30][%csl LRa7,LRd8] Excellent horsemanship.} Rxd2 {[%emt 0:01:08]} 32. Nxd2 $14 {[%emt 0:00:01][%mdl 4096] Endgame. KBN-KNN} Nc6 {[%emt 0:00:09]} 33. Nd6 {[%emt 0:00:03]} Ne7 {[%emt 0:00:10]} 34. f4 {[%emt 0:00:17]} b6 {[%emt 0:00:24]} 35. Kf2 {[%emt 0:00:14]} (35. Nf3 $14) 35... Bd7 $11 {[%emt 0:00:15]} 36. Nf3 {[%emt 0:00:41]} Kf8 {[%emt 0:01:24] [#]} (36... Nc8 $11 37. Nxc8 Bxc8) 37. Ne5 $1 $16 {[%emt 0:00:24]} Be8 {[%emt 0:00:20]} 38. Ke3 {[%emt 0:00:17]} g6 {[%emt 0:00:47][%cal Bg7g6,Bg6g5,Bg5g4][%mdl 32]} 39. g3 {[%emt 0:00:25] White has more active pieces.} Bc6 {[%emt 0:00:34]} 40. Kd4 {[%emt 0:01:10]} g5 {[%emt 0:00:34]} 41. Nxc6 {[%emt 0:02:10]} Nxc6+ {[%emt 0:00:02] KN-KN} 42. Kd5 {[%emt 0:00:03]} Na5 {[%emt 0:00:55][%mdl 8192] A mistake that costs the game.} (42... Nb4+ $16 43. Ke6 gxf4 44. gxf4 (44. Nxf5 f3 $17) 44... Nd3) 43. b4 $18 {[%emt 0:00:10] White is clearly winning.} (43. Nxf5 Nxb3 44. Nxh6 gxf4 45. gxf4 a5 $14) 43... Nb3 {[%emt 0:00:03]} 44. b5 {[%emt 0:00:31]} (44. c5 $142 bxc5 45. bxc5 (45. Nxf5 cxb4 46. fxg5 hxg5 $15) 45... Nxc5 46. Kxc5) 44... g4 {[%emt 0:00:37]} 45. h4 {[%emt 0:00:37]} (45. Nxf5 $2 {is the wrong capture.} gxh3 46. g4 Nd2 $19 (46... h2 $2 47. Ng3 $19)) 45... Nd2 {[%emt 0:00:02]} 46. Nxf5 {[%emt 0:00:10]} h5 {[%emt 0:00:29]} 47. Ne3 {[%emt 0:01:18] Kc6 would now be deadly.} Kf7 {[%emt 0:00:16]} 48. Kc6 {[%emt 0:00:15] Strongly threatening Kb7.} Ne4 {[%emt 0:00:07]} 49. Kb7 {[%emt 0:00:12]} ({Stronger than} 49. Nf5 Kf6 50. Nd4 Nxg3 $11) 49... Nxg3 {[%emt 0:00:42]} 50. Kxa7 {[%emt 0:00:04]} Ke6 {[%emt 0:01:30]} 51. Kxb6 {[%emt 0:00:35]} Nf5 {[%emt 0:00:05]} 52. Ng2 {[%emt 0:00:31] Weighted Error Value: White=0.21 (precise) /Black=0.18 (very precise) .  Loses game:     	---       	Black=1      Mistake:       	White=3     	Black=1      Inaccurate:     	White=1     	Black=4      OK:         	White=13    	Black=15     Best:        	White=3     	Black=2      Strong:       	White=1     	---} 1-0

[Event "Baku Open 2024"]
[Site "Baku"]
[Date "2024.07.06"]
[Round "8.18"]
[White "Aradhya, Garg"]
[Black "Davudov, Tunar"]
[Result "1-0"]
[ECO "E10"]
[WhiteElo "2418"]
[BlackElo "2249"]
[Annotator "TA"]
[PlyCount "79"]
[EventDate "2024.06.29"]
[EventType "swiss"]
[EventCountry "AZE"]
[SourceTitle "playchess.com"]
[Source "ChessBase"]
[SourceQuality "1"]
[TimeControl "5400+30"]

{[%evp 13,79,42,32,52,52,57,56,14,16,0,56,81,58,45,83,81,158,176,164,159,170,172,190,188,179,190,488,489,495,487,466,482,449,391,393,370,395,391,391,391,533,522,485,487,592,531,523,510,1193,1154,1270,1189,2650,2282,12845,12818,29976,29977,29982,29982,29985,29986,29986,29987,29987,29988,29988,29988]} 1. d4 {[%emt 0:00:02]} Nf6 {[%emt 0:00:10]} 2. Nf3 {[%emt 0:00:20]} e6 {[%emt 0:00:14]} 3. c4 {[%emt 0:00:04][%cal Bc2c4,Bc4d5][%mdl 32]} c5 {[%emt 0:00:27]} 4. d5 {[%emt 0:00:05]} exd5 {[%emt 0:00:07]} 5. cxd5 {[%emt 0:00:03]} d6 {[%emt 0:00:04]} 6. e4 {[%emt 0:00:13]} g6 {[%emt 0:00:10]} 7. h3 {[%emt 0:00:16]} Bg7 {[%emt 0:00:07][%cal Oe8g8]} 8. Bd3 {[%emt 0:00:10]} O-O {[%emt 0:00:10]} 9. O-O {[%emt 0:00:43]} c4 {[%emt 0:00:11]} 10. Bxc4 {[%emt 0:04:56] White is slightly better.} Nxe4 {[%emt 0:00:18]} 11. Bd3 {[%emt 0:05:09]} Re8 {[%emt 0:13:16]} (11... Nc5 $11) 12. Bxe4 $14 {[%emt 0:05:51]} Rxe4 {[%emt 0:00:09]} 13. Nc3 {[%emt 0:00:03]} Re8 {[%emt 0:06:19]} 14. Bg5 {[%emt 0:00:32] White leaves nothing to chance now.} Qd7 {[%emt 0:48:49] [#]} (14... Qa5 $142) 15. Qd2 $1 $16 {[%emt 0:06:20]} f6 {[%emt 0:12:09]} 16. Bf4 {[%emt 0:00:47] Threatens to win with Rae1.} Na6 {[%emt 0:06:15]} 17. Rfe1 {[%emt 0:03:01]} Rxe1+ {[%emt 0:00:30]} 18. Rxe1 {[%emt 0:00:05]} ({Resist} 18. Nxe1 $6 g5 $16) 18... Nc7 {[%emt 0:00:10]} 19. Nd4 {[%emt 0:02:28]} b6 $2 {[%emt 0:02:01]} (19... Qd8 20. Ne6 Bxe6) 20. Nc6 $18 {[%emt 0:01:24] A dynamic duo of knights.} Bf8 {[%emt 0:00:14] Wards off Re7} 21. Bh6 {[%emt 0:00:56] [#] Black must now prevent Bxf8.} Bb7 {[%emt 0:04:23][%cal Bc8b7,Bb7c6,Bc6d7][%mdl 32]} 22. Bxf8 {[%emt 0:00:07]} Rxf8 {[%emt 0:00:05]} 23. Re7 {[%emt 0:01:00]} (23. Nxa7 Kg7 24. a4 Re8 $16) 23... Bxc6 {[%emt 0:00:28]} 24. Rxd7 {[%emt 0:00:07]} Bxd7 {[%emt 0:00:03]} 25. Ne4 {[%emt 0:02:25]} Ne8 {[%emt 0:00:59]} 26. Qb4 {[%emt 0:00:15]} h5 {[%emt 0:00:33]} 27. Nxd6 {[%emt 0:00:26]} Nxd6 {[%emt 0:00:08]} 28. Qxd6 {[%emt 0:00:04][%mdl 4096] Endgame. KQ-KRB} Rf7 {[%emt 0:00:06]} 29. Qb8+ {[%emt 0:00:32]} Kg7 {[%emt 0:00:05]} 30. Qxa7 {[%emt 0:00:08]} Bxh3 {[%emt 0:00:04]} (30... b5 $142 31. Qc5 Kh7) 31. Qxb6 {[%emt 0:00:27]} Bf5 {[%emt 0:07:16]} 32. a4 {[%emt 0:00:12][%cal Ba2a4,Ba4a5,Ba5a6,Ba6a7][%mdl 32]} Re7 {[%emt 0:00:00]} 33. a5 {[%emt 0:01:11] aiming for a6.} h4 {[%emt 0:00:00][%cal Bh5h4,Bh4h3][%mdl 32]} 34. a6 {[%emt 0:00:13] Threatening mate with a7.} Re1+ {[%emt 0:00:00]} 35. Kh2 {[%emt 0:00:02] White mates.} h3 {[%emt 0:00:00]} 36. a7 {[%emt 0:01:00]} hxg2 {[%emt 0:00:00]} 37. Qb7+ {[%emt 0:00:42]} (37. a8=B $2 g1=Q#) 37... Kh6 {[%emt 0:00:00]} 38. Kxg2 {[%emt 0:00:07]} (38. a8=B $2 g1=Q#) 38... Be4+ {[%emt 0:00:00]} 39. f3 {[%emt 0:00:17]} Re2+ {[%emt 0:00:00]} 40. Kg1 {[%emt 0:00:11] Weighted Error Value: White=0.03 (flawless) /Black=0.54.  Mistake:       	---       	Black=4      Inaccurate:     	White=1     	Black=2      OK:         	White=13    	Black=9      Best:        	White=5     	Black=1} 1-0

[Event "Baku Open 2024"]
[Site "Baku"]
[Date "2024.07.06"]
[Round "8.19"]
[White "Suleymanli, Suleyman"]
[Black "Atakishiyev, Elmar"]
[Result "1/2-1/2"]
[ECO "D77"]
[WhiteElo "2262"]
[BlackElo "2356"]
[Annotator "TA"]
[PlyCount "44"]
[EventDate "2024.06.29"]
[EventType "swiss"]
[EventCountry "AZE"]
[SourceTitle "playchess.com"]
[Source "ChessBase"]
[SourceQuality "1"]
[TimeControl "5400+30"]

{[%evp 13,44,11,27,6,35,31,32,24,57,57,50,55,32,48,46,50,49,58,55,27,43,0,10,10,11,-20,-22,-15,-14,-39,-31,-48,-51]} 1. Nf3 {[%emt 0:00:02]} Nf6 {[%emt 0:04:25]} 2. g3 {[%emt 0:00:03]} g6 {[%emt 0:00:34]} 3. Bg2 {[%emt 0:00:05]} Bg7 {[%emt 0:00:04]} 4. O-O {[%emt 0:00:06]} O-O {[%emt 0:00:05]} 5. d4 {[%emt 0:00:02]} d5 {[%emt 0:00:13]} 6. c4 {[%emt 0:00:01]} dxc4 {[%emt 0:00:18]} 7. Na3 {[%emt 0:00:02]} a5 {[%emt 0:00:12]} 8. Re1 {[%emt 0:02:28][%cal Oe2e4]} c6 {[%emt 0:08:21]} 9. Nxc4 {[%emt 0:01:07]} Be6 {[%emt 0:05:43]} 10. Qc2 {[%emt 0:02:14] White is slightly better.} Na6 {[%emt 0:07:08][%cal Bb8a6,Ba6c7,Bc7b5,Bb5d6][%mdl 32]} 11. a3 {[%emt 0:03:39] Dodges Nb4} a4 {[%emt 0:08:24]} 12. e4 {[%emt 0:04:52]} (12. Qxa4 $2 {too greedy.} b5 13. Qc2 bxc4 $19) 12... Nc7 {[%emt 0:01:50]} 13. Bf4 {[%emt 0:04:46][%cal Od4d5]} Nb5 {[%emt 0:03:17]} 14. Rad1 {[%emt 0:02:12]} Nd6 {[%emt 0:01:08]} 15. Ncd2 {[%emt 0:23:00] Black must now prevent e5.} Nb5 {[%emt 0:01:56]} 16. Be5 {[%emt 0:07:18]} Bh6 {[%emt 0:00:38]} 17. Qd3 {[%emt 0:05:33][%cal Od4d5]} Qb6 {[%emt 0:08:39]} 18. Nc4 {[%emt 0:05:03]} (18. d5 {is more complex.} cxd5 19. exd5 Bxd5 20. Bxf6 Bxf3 21. Nc4) 18... Qa6 {[%emt 0:00:48]} 19. Bxf6 {[%emt 0:03:35]} exf6 {[%emt 0:00:17]} 20. d5 {[%emt 0:01:20]} Rfd8 {[%emt 0:06:18]} 21. Nd4 {[%emt 0:03:39]} Bg4 {[%emt 0:00:06] And now ...cxd5 would win.} 22. Bf3 {[%emt 0:08:45]} Nxd4 {[%emt 0:20:25] Weighted Error Value: White=0.12 (very precise) /Black=0.06 (flawless) .  Inaccurate:     	White=3     	Black=2      OK:         	White=5     	Black=5      Best:        	---       	Black=1} 1/2-1/2

[Event "Baku Open 2024"]
[Site "Baku"]
[Date "2024.07.06"]
[Round "8.20"]
[White "Orujov, Farid"]
[Black "Mammadova, Gulnar"]
[Result "1/2-1/2"]
[ECO "C88"]
[WhiteElo "2243"]
[BlackElo "2348"]
[Annotator "TA"]
[PlyCount "40"]
[EventDate "2024.06.29"]
[EventType "swiss"]
[EventCountry "AZE"]
[SourceTitle "playchess.com"]
[Source "ChessBase"]
[SourceQuality "1"]
[TimeControl "5400+30"]

{[%evp 16,40,18,17,22,19,29,14,13,0,0,0,0,0,0,0,0,0,0,0,0,0,0,0,0,0,0]} 1. e4 {[%emt 0:00:01]} e5 {[%emt 0:00:06]} 2. Nf3 {[%emt 0:00:05]} Nc6 {[%emt 0:00:07]} 3. Bb5 {[%emt 0:00:04]} a6 {[%emt 0:00:06]} 4. Ba4 {[%emt 0:00:05]} Nf6 {[%emt 0:00:07]} 5. O-O {[%emt 0:00:06]} Be7 {[%emt 0:00:20]} 6. Re1 {[%emt 0:00:06]} b5 {[%emt 0:00:13]} 7. Bb3 {[%emt 0:00:06]} O-O {[%emt 0:00:18]} 8. h3 {[%emt 0:00:29]} Bb7 {[%emt 0:00:25]} 9. d3 {[%emt 0:00:12]} d5 {[%emt 0:00:47]} 10. exd5 {[%emt 0:00:08]} Nxd5 {[%emt 0:00:04]} 11. a4 {[%emt 0:00:10]} Nd4 {[%emt 0:17:24] The position is equal.} 12. Nxd4 {[%emt 0:00:17]} exd4 {[%emt 0:00:06]} 13. axb5 {[%emt 0:00:06]} axb5 {[%emt 0:01:17]} 14. Rxa8 {[%emt 0:00:07]} Bxa8 {[%emt 0:00:10]} 15. Na3 {[%emt 0:00:08]} Bb4 {[%emt 0:10:29]} 16. Bd2 {[%emt 0:00:06]} Bxd2 {[%emt 0:01:00]} 17. Qxd2 {[%emt 0:00:06]} Qf6 {[%emt 0:08:17]} 18. Bxd5 {[%emt 0:05:01]} Bxd5 {[%emt 0:00:03]} 19. Nxb5 {[%emt 0:00:07][%cal Oc2c4]} Bxg2 {[%emt 0:00:07]} 20. Kxg2 {[%emt 0:00:04][%cal Ob5a3] [#] Black must now prevent Na3!} Qc6+ {[%emt 0:00:07] A rather calm draw.   Weighted Error Value: White=0.04 (flawless) /Black=0.01 (flawless) .  OK:         	White=7     	Black=4      Best:        	---       	Black=2} 1/2-1/2